{"text_format":"1","workbook":"xlsx","n_sheets":3,"sheets":["Центр","Подробности","Расплата"],"not_rendered":{"charts":0,"images":1,"macros":1,"external_links":0,"defined_names":6,"comments":2,"pivot_tables":0},"unopened":[],"bounds":{"document_bytes":16777216,"sheet_cells":100000,"rows_first":2000,"rows_last":500,"rows_between":2000,"halvings":0,"cell_chars":16384,"cell_head_chars":4096},"cells_cut":0,"cells_raw":0,"read":"whole","date_system":"1900"}

{"sheet":"Центр","index":0,"n_rows":32,"n_cols":31,"rows_kept":32,"cut":false,"hidden":false,"merged":[[30,2,30,5],[31,2,31,5],[1,4,1,6],[1,7,1,8],[29,2,29,5],[28,2,28,5],[0,1,0,8],[1,1,1,2],[3,4,22,4],[27,2,27,5],[26,2,26,5]]}
["Мероприятие :"]
["Дата проведения :",null,null,"Кассир :"]
["ФИ","Key","Active","Вес",null,"Сдал в кассу","Потратил сам","Остатки по кассе","Баланс","Отдай","Получи","Flag","PU",null,"© perfect-excel.ru"]
["Иванов",1,"Да",1,"Промежуточные расчёты",{"$f":"SUMIF(Подробности!$C$2:$C$199,$A4,Подробности!$AB$2:$AB$199)","v":0},{"$f":"SUMIF(Подробности!$C$2:$C$199,$A4,Подробности!$AD$2:$AD$199)","v":0},{"$f":"IF($E$2=$A4,$G$31+$G$29,0)","v":0},{"$f":"IF($C4=$AC$5,$F4+$G4-$G$32/$D$24*$D4-$H4,0)","v":0},{"$f":"IF($I4<0,$I4*-1,0)","v":0},{"$f":"IF($I4>0,$I4,0)","v":0},0,0,null,null,null,null,null,null,null,null,null,null,null,null,null,null,null,"Участие",null,"Операции"]
["Free",2,"Нет",1,null,{"$f":"SUMIF(Подробности!$C$2:$C$199,$A5,Подробности!$AB$2:$AB$199)","v":0},{"$f":"SUMIF(Подробности!$C$2:$C$199,$A5,Подробности!$AD$2:$AD$199)","v":0},{"$f":"IF($E$2=$A5,$G$31+$G$29,0)","v":0},{"$f":"IF($C5=$AC$5,$F5+$G5-$G$32/$D$24*$D5-$H5,0)","v":0},{"$f":"IF($I5<0,$I5*-1,0)","v":0},{"$f":"IF($I5>0,$I5,0)","v":0},0,0,null,null,null,null,null,null,null,null,null,null,null,null,null,null,null,"Да",null,"Благотворительность"]
["Free",3,"Нет",1,null,{"$f":"SUMIF(Подробности!$C$2:$C$199,$A6,Подробности!$AB$2:$AB$199)","v":0},{"$f":"SUMIF(Подробности!$C$2:$C$199,$A6,Подробности!$AD$2:$AD$199)","v":0},{"$f":"IF($E$2=$A6,$G$31+$G$29,0)","v":0},0,0,0,0,0,null,null,null,null,null,null,null,null,null,null,null,null,null,null,null,"Нет",null,"Скинулся в общак"]
["Free",4,"Нет",1,null,{"$f":"SUMIF(Подробности!$C$2:$C$199,$A7,Подробности!$AB$2:$AB$199)","v":0},{"$f":"SUMIF(Подробности!$C$2:$C$199,$A7,Подробности!$AD$2:$AD$199)","v":0},0,0,0,0,0,0,null,null,null,null,null,null,null,null,null,null,null,null,null,null,null,null,null,"Из общака"]
["Free",5,"Нет",1,null,{"$f":"SUMIF(Подробности!$C$2:$C$199,$A8,Подробности!$AB$2:$AB$199)","v":0},{"$f":"SUMIF(Подробности!$C$2:$C$199,$A8,Подробности!$AD$2:$AD$199)","v":0},0,0,0,0,0,0,null,null,null,null,null,null,null,null,null,null,null,null,null,null,null,null,null,"Из личных сбережений"]
["Free",6,"Нет",1,null,{"$f":"SUMIF(Подробности!$C$2:$C$199,$A9,Подробности!$AB$2:$AB$199)","v":0},{"$f":"SUMIF(Подробности!$C$2:$C$199,$A9,Подробности!$AD$2:$AD$199)","v":0},0,0,0,0,0,0]
["Free",7,"Нет",1,null,{"$f":"SUMIF(Подробности!$C$2:$C$199,$A10,Подробности!$AB$2:$AB$199)","v":0},{"$f":"SUMIF(Подробности!$C$2:$C$199,$A10,Подробности!$AD$2:$AD$199)","v":0},0,0,0,0,0,0]
["Free",8,"Нет",1,null,{"$f":"SUMIF(Подробности!$C$2:$C$199,$A11,Подробности!$AB$2:$AB$199)","v":0},{"$f":"SUMIF(Подробности!$C$2:$C$199,$A11,Подробности!$AD$2:$AD$199)","v":0},0,0,0,0,0,0]
["Free",9,"Нет",1,null,{"$f":"SUMIF(Подробности!$C$2:$C$199,$A12,Подробности!$AB$2:$AB$199)","v":0},{"$f":"SUMIF(Подробности!$C$2:$C$199,$A12,Подробности!$AD$2:$AD$199)","v":0},0,0,0,0,0,0]
["Free",10,"Нет",1,null,{"$f":"SUMIF(Подробности!$C$2:$C$199,$A13,Подробности!$AB$2:$AB$199)","v":0},{"$f":"SUMIF(Подробности!$C$2:$C$199,$A13,Подробности!$AD$2:$AD$199)","v":0},0,0,0,0,0,0]
["Free",11,"Нет",1,null,{"$f":"SUMIF(Подробности!$C$2:$C$199,$A14,Подробности!$AB$2:$AB$199)","v":0},{"$f":"SUMIF(Подробности!$C$2:$C$199,$A14,Подробности!$AD$2:$AD$199)","v":0},0,0,0,0,0,0]
["Free",12,"Нет",1,null,{"$f":"SUMIF(Подробности!$C$2:$C$199,$A15,Подробности!$AB$2:$AB$199)","v":0},{"$f":"SUMIF(Подробности!$C$2:$C$199,$A15,Подробности!$AD$2:$AD$199)","v":0},0,0,0,0,0,0]
["Free",13,"Нет",1,null,{"$f":"SUMIF(Подробности!$C$2:$C$199,$A16,Подробности!$AB$2:$AB$199)","v":0},{"$f":"SUMIF(Подробности!$C$2:$C$199,$A16,Подробности!$AD$2:$AD$199)","v":0},0,0,0,0,0,0]
["Free",14,"Нет",1,null,{"$f":"SUMIF(Подробности!$C$2:$C$199,$A17,Подробности!$AB$2:$AB$199)","v":0},{"$f":"SUMIF(Подробности!$C$2:$C$199,$A17,Подробности!$AD$2:$AD$199)","v":0},0,0,0,0,0,0]
["Free",15,"Нет",1,null,{"$f":"SUMIF(Подробности!$C$2:$C$199,$A18,Подробности!$AB$2:$AB$199)","v":0},{"$f":"SUMIF(Подробности!$C$2:$C$199,$A18,Подробности!$AD$2:$AD$199)","v":0},0,0,0,0,0,0]
["Free",16,"Нет",1,null,{"$f":"SUMIF(Подробности!$C$2:$C$199,$A19,Подробности!$AB$2:$AB$199)","v":0},{"$f":"SUMIF(Подробности!$C$2:$C$199,$A19,Подробности!$AD$2:$AD$199)","v":0},0,0,0,0,0,0]
["Free",17,"Нет",1,null,{"$f":"SUMIF(Подробности!$C$2:$C$199,$A20,Подробности!$AB$2:$AB$199)","v":0},{"$f":"SUMIF(Подробности!$C$2:$C$199,$A20,Подробности!$AD$2:$AD$199)","v":0},0,0,0,0,0,0]
["Free",18,"Нет",1,null,{"$f":"SUMIF(Подробности!$C$2:$C$199,$A21,Подробности!$AB$2:$AB$199)","v":0},{"$f":"SUMIF(Подробности!$C$2:$C$199,$A21,Подробности!$AD$2:$AD$199)","v":0},0,0,0,0,0,0]
["Free",19,"Нет",1,null,{"$f":"SUMIF(Подробности!$C$2:$C$199,$A22,Подробности!$AB$2:$AB$199)","v":0},{"$f":"SUMIF(Подробности!$C$2:$C$199,$A22,Подробности!$AD$2:$AD$199)","v":0},0,0,0,0,0,0]
["Free",20,"Нет",1,null,{"$f":"SUMIF(Подробности!$C$2:$C$199,$A23,Подробности!$AB$2:$AB$199)","v":0},{"$f":"SUMIF(Подробности!$C$2:$C$199,$A23,Подробности!$AD$2:$AD$199)","v":0},0,0,0,0,0,0]
[null,"Count:",{"$f":"COUNTIF(C4:C23,$AC$5)","v":1},{"$f":"SUMIF(C4:C23,$AC$5,D4:D23)","v":1},"Total:",{"$f":"SUM(F4:F23)","v":0},0,0,0,0,0]
[]
[null,null,null,null,null,null,"ВСЕГО","На чел."]
[null,null,"Расходы из общака, ВСЕГО :",null,null,null,{"$f":"Подробности!$AC$200","v":0},{"$f":"$G$27/$D$24","v":0}]
[null,null,"Личные расходы, ВСЕГО :",null,null,null,{"$f":"Подробности!$AD$200","v":0},{"$f":"$G$28/$D$24","v":0}]
[null,null,"Вспоможение, ВСЕГО :",null,null,null,{"$f":"Подробности!$AA$200","v":0},{"$f":"$G$29/$C$24","v":0}]
[null,null,"Общак, ВСЕГО :",null,null,null,{"$f":"Подробности!$AB$200","v":0},{"$f":"$G$30/$C$24","v":0},{"$f":"IF($G$27>$G$30,\"   Потрачено больше, чем сдано !\",\"\")","v":""}]
[null,null,"Недотраченный общак, ВСЕГО :",null,null,null,{"$f":"IF($G$30-$G$27>0,$G$30-$G$27,0)","v":0},{"$f":"$G$31/$C$24","v":0},{"$f":"IF($E$2=0,\"   Кассир не назначен !\",\"\")","v":"   Кассир не назначен !"}]
[null,null,"Стоимость мероприятия, ВСЕГО :",null,null,null,{"$f":"G27+G28-G29","v":0},{"$f":"$G$32/$C$24","v":0}]

{"sheet":"Подробности","index":1,"n_rows":200,"n_cols":30,"rows_kept":200,"cut":false,"hidden":false,"merged":[]}
["Дата","Чё делал…","Кто","На что потрачено…","Сумма",null,null,null,null,null,null,null,null,null,null,null,null,null,null,null,null,null,null,null,null,null,"Благотворительность","Скинулся в общак","Из общака","Из личных сбережений"]
[null,null,null,null,null,null,null,null,null,null,null,null,null,null,null,null,null,null,null,null,null,null,null,null,null,null,{"$f":"IF($B2=Центр!$AE$5,$E2,0)","v":0},{"$f":"IF($B2=Центр!$AE$6,$E2,0)","v":0},{"$f":"IF($B2=Центр!$AE$7,$E2,0)","v":0},{"$f":"IF($B2=Центр!$AE$8,$E2,0)","v":0}]
[null,null,null,null,null,null,null,null,null,null,null,null,null,null,null,null,null,null,null,null,null,null,null,null,null,null,{"$f":"IF($B3=Центр!$AE$5,$E3,0)","v":0},{"$f":"IF($B3=Центр!$AE$6,$E3,0)","v":0},{"$f":"IF($B3=Центр!$AE$7,$E3,0)","v":0},{"$f":"IF($B3=Центр!$AE$8,$E3,0)","v":0}]
[null,null,null,null,null,null,null,null,null,null,null,null,null,null,null,null,null,null,null,null,null,null,null,null,null,null,{"$f":"IF($B4=Центр!$AE$5,$E4,0)","v":0},{"$f":"IF($B4=Центр!$AE$6,$E4,0)","v":0},{"$f":"IF($B4=Центр!$AE$7,$E4,0)","v":0},{"$f":"IF($B4=Центр!$AE$8,$E4,0)","v":0}]
[null,null,null,null,null,null,null,null,null,null,null,null,null,null,null,null,null,null,null,null,null,null,null,null,null,null,{"$f":"IF($B5=Центр!$AE$5,$E5,0)","v":0},{"$f":"IF($B5=Центр!$AE$6,$E5,0)","v":0},{"$f":"IF($B5=Центр!$AE$7,$E5,0)","v":0},{"$f":"IF($B5=Центр!$AE$8,$E5,0)","v":0}]
[null,null,null,null,null,null,null,null,null,null,null,null,null,null,null,null,null,null,null,null,null,null,null,null,null,null,{"$f":"IF($B6=Центр!$AE$5,$E6,0)","v":0},{"$f":"IF($B6=Центр!$AE$6,$E6,0)","v":0},{"$f":"IF($B6=Центр!$AE$7,$E6,0)","v":0},{"$f":"IF($B6=Центр!$AE$8,$E6,0)","v":0}]
[null,null,null,null,null,null,null,null,null,null,null,null,null,null,null,null,null,null,null,null,null,null,null,null,null,null,{"$f":"IF($B7=Центр!$AE$5,$E7,0)","v":0},{"$f":"IF($B7=Центр!$AE$6,$E7,0)","v":0},{"$f":"IF($B7=Центр!$AE$7,$E7,0)","v":0},{"$f":"IF($B7=Центр!$AE$8,$E7,0)","v":0}]
[null,null,null,null,null,null,null,null,null,null,null,null,null,null,null,null,null,null,null,null,null,null,null,null,null,null,{"$f":"IF($B8=Центр!$AE$5,$E8,0)","v":0},{"$f":"IF($B8=Центр!$AE$6,$E8,0)","v":0},{"$f":"IF($B8=Центр!$AE$7,$E8,0)","v":0},{"$f":"IF($B8=Центр!$AE$8,$E8,0)","v":0}]
[null,null,null,null,null,null,null,null,null,null,null,null,null,null,null,null,null,null,null,null,null,null,null,null,null,null,{"$f":"IF($B9=Центр!$AE$5,$E9,0)","v":0},{"$f":"IF($B9=Центр!$AE$6,$E9,0)","v":0},{"$f":"IF($B9=Центр!$AE$7,$E9,0)","v":0},{"$f":"IF($B9=Центр!$AE$8,$E9,0)","v":0}]
[null,null,null,null,null,null,null,null,null,null,null,null,null,null,null,null,null,null,null,null,null,null,null,null,null,null,{"$f":"IF($B10=Центр!$AE$5,$E10,0)","v":0},{"$f":"IF($B10=Центр!$AE$6,$E10,0)","v":0},{"$f":"IF($B10=Центр!$AE$7,$E10,0)","v":0},{"$f":"IF($B10=Центр!$AE$8,$E10,0)","v":0}]
[null,null,null,null,null,null,null,null,null,null,null,null,null,null,null,null,null,null,null,null,null,null,null,null,null,null,{"$f":"IF($B11=Центр!$AE$5,$E11,0)","v":0},{"$f":"IF($B11=Центр!$AE$6,$E11,0)","v":0},{"$f":"IF($B11=Центр!$AE$7,$E11,0)","v":0},{"$f":"IF($B11=Центр!$AE$8,$E11,0)","v":0}]
[null,null,null,null,null,null,null,null,null,null,null,null,null,null,null,null,null,null,null,null,null,null,null,null,null,null,{"$f":"IF($B12=Центр!$AE$5,$E12,0)","v":0},{"$f":"IF($B12=Центр!$AE$6,$E12,0)","v":0},{"$f":"IF($B12=Центр!$AE$7,$E12,0)","v":0},{"$f":"IF($B12=Центр!$AE$8,$E12,0)","v":0}]
[null,null,null,null,null,null,null,null,null,null,null,null,null,null,null,null,null,null,null,null,null,null,null,null,null,null,{"$f":"IF($B13=Центр!$AE$5,$E13,0)","v":0},{"$f":"IF($B13=Центр!$AE$6,$E13,0)","v":0},{"$f":"IF($B13=Центр!$AE$7,$E13,0)","v":0},{"$f":"IF($B13=Центр!$AE$8,$E13,0)","v":0}]
[null,null,null,null,null,null,null,null,null,null,null,null,null,null,null,null,null,null,null,null,null,null,null,null,null,null,{"$f":"IF($B14=Центр!$AE$5,$E14,0)","v":0},{"$f":"IF($B14=Центр!$AE$6,$E14,0)","v":0},{"$f":"IF($B14=Центр!$AE$7,$E14,0)","v":0},{"$f":"IF($B14=Центр!$AE$8,$E14,0)","v":0}]
[null,null,null,null,null,null,null,null,null,null,null,null,null,null,null,null,null,null,null,null,null,null,null,null,null,null,{"$f":"IF($B15=Центр!$AE$5,$E15,0)","v":0},{"$f":"IF($B15=Центр!$AE$6,$E15,0)","v":0},{"$f":"IF($B15=Центр!$AE$7,$E15,0)","v":0},{"$f":"IF($B15=Центр!$AE$8,$E15,0)","v":0}]
[null,null,null,null,null,null,null,null,null,null,null,null,null,null,null,null,null,null,null,null,null,null,null,null,null,null,{"$f":"IF($B16=Центр!$AE$5,$E16,0)","v":0},{"$f":"IF($B16=Центр!$AE$6,$E16,0)","v":0},{"$f":"IF($B16=Центр!$AE$7,$E16,0)","v":0},{"$f":"IF($B16=Центр!$AE$8,$E16,0)","v":0}]
[null,null,null,null,null,null,null,null,null,null,null,null,null,null,null,null,null,null,null,null,null,null,null,null,null,null,{"$f":"IF($B17=Центр!$AE$5,$E17,0)","v":0},{"$f":"IF($B17=Центр!$AE$6,$E17,0)","v":0},{"$f":"IF($B17=Центр!$AE$7,$E17,0)","v":0},{"$f":"IF($B17=Центр!$AE$8,$E17,0)","v":0}]
[null,null,null,null,null,null,null,null,null,null,null,null,null,null,null,null,null,null,null,null,null,null,null,null,null,null,{"$f":"IF($B18=Центр!$AE$5,$E18,0)","v":0},{"$f":"IF($B18=Центр!$AE$6,$E18,0)","v":0},{"$f":"IF($B18=Центр!$AE$7,$E18,0)","v":0},{"$f":"IF($B18=Центр!$AE$8,$E18,0)","v":0}]
[null,null,null,null,null,null,null,null,null,null,null,null,null,null,null,null,null,null,null,null,null,null,null,null,null,null,{"$f":"IF($B19=Центр!$AE$5,$E19,0)","v":0},{"$f":"IF($B19=Центр!$AE$6,$E19,0)","v":0},{"$f":"IF($B19=Центр!$AE$7,$E19,0)","v":0},{"$f":"IF($B19=Центр!$AE$8,$E19,0)","v":0}]
[null,null,null,null,null,null,null,null,null,null,null,null,null,null,null,null,null,null,null,null,null,null,null,null,null,null,{"$f":"IF($B20=Центр!$AE$5,$E20,0)","v":0},{"$f":"IF($B20=Центр!$AE$6,$E20,0)","v":0},{"$f":"IF($B20=Центр!$AE$7,$E20,0)","v":0},{"$f":"IF($B20=Центр!$AE$8,$E20,0)","v":0}]
[null,null,null,null,null,null,null,null,null,null,null,null,null,null,null,null,null,null,null,null,null,null,null,null,null,null,{"$f":"IF($B21=Центр!$AE$5,$E21,0)","v":0},{"$f":"IF($B21=Центр!$AE$6,$E21,0)","v":0},{"$f":"IF($B21=Центр!$AE$7,$E21,0)","v":0},{"$f":"IF($B21=Центр!$AE$8,$E21,0)","v":0}]
[null,null,null,null,null,null,null,null,null,null,null,null,null,null,null,null,null,null,null,null,null,null,null,null,null,null,{"$f":"IF($B22=Центр!$AE$5,$E22,0)","v":0},{"$f":"IF($B22=Центр!$AE$6,$E22,0)","v":0},{"$f":"IF($B22=Центр!$AE$7,$E22,0)","v":0},{"$f":"IF($B22=Центр!$AE$8,$E22,0)","v":0}]
[null,null,null,null,null,null,null,null,null,null,null,null,null,null,null,null,null,null,null,null,null,null,null,null,null,null,{"$f":"IF($B23=Центр!$AE$5,$E23,0)","v":0},{"$f":"IF($B23=Центр!$AE$6,$E23,0)","v":0},{"$f":"IF($B23=Центр!$AE$7,$E23,0)","v":0},{"$f":"IF($B23=Центр!$AE$8,$E23,0)","v":0}]
[null,null,null,null,null,null,null,null,null,null,null,null,null,null,null,null,null,null,null,null,null,null,null,null,null,null,{"$f":"IF($B24=Центр!$AE$5,$E24,0)","v":0},{"$f":"IF($B24=Центр!$AE$6,$E24,0)","v":0},{"$f":"IF($B24=Центр!$AE$7,$E24,0)","v":0},{"$f":"IF($B24=Центр!$AE$8,$E24,0)","v":0}]
[null,null,null,null,null,null,null,null,null,null,null,null,null,null,null,null,null,null,null,null,null,null,null,null,null,null,{"$f":"IF($B25=Центр!$AE$5,$E25,0)","v":0},{"$f":"IF($B25=Центр!$AE$6,$E25,0)","v":0},{"$f":"IF($B25=Центр!$AE$7,$E25,0)","v":0},{"$f":"IF($B25=Центр!$AE$8,$E25,0)","v":0}]
[null,null,null,null,null,null,null,null,null,null,null,null,null,null,null,null,null,null,null,null,null,null,null,null,null,null,{"$f":"IF($B26=Центр!$AE$5,$E26,0)","v":0},{"$f":"IF($B26=Центр!$AE$6,$E26,0)","v":0},{"$f":"IF($B26=Центр!$AE$7,$E26,0)","v":0},{"$f":"IF($B26=Центр!$AE$8,$E26,0)","v":0}]
[null,null,null,null,null,null,null,null,null,null,null,null,null,null,null,null,null,null,null,null,null,null,null,null,null,null,{"$f":"IF($B27=Центр!$AE$5,$E27,0)","v":0},{"$f":"IF($B27=Центр!$AE$6,$E27,0)","v":0},{"$f":"IF($B27=Центр!$AE$7,$E27,0)","v":0},{"$f":"IF($B27=Центр!$AE$8,$E27,0)","v":0}]
[null,null,null,null,null,null,null,null,null,null,null,null,null,null,null,null,null,null,null,null,null,null,null,null,null,null,{"$f":"IF($B28=Центр!$AE$5,$E28,0)","v":0},{"$f":"IF($B28=Центр!$AE$6,$E28,0)","v":0},{"$f":"IF($B28=Центр!$AE$7,$E28,0)","v":0},{"$f":"IF($B28=Центр!$AE$8,$E28,0)","v":0}]
[null,null,null,null,null,null,null,null,null,null,null,null,null,null,null,null,null,null,null,null,null,null,null,null,null,null,{"$f":"IF($B29=Центр!$AE$5,$E29,0)","v":0},{"$f":"IF($B29=Центр!$AE$6,$E29,0)","v":0},{"$f":"IF($B29=Центр!$AE$7,$E29,0)","v":0},{"$f":"IF($B29=Центр!$AE$8,$E29,0)","v":0}]
[null,null,null,null,null,null,null,null,null,null,null,null,null,null,null,null,null,null,null,null,null,null,null,null,null,null,{"$f":"IF($B30=Центр!$AE$5,$E30,0)","v":0},{"$f":"IF($B30=Центр!$AE$6,$E30,0)","v":0},{"$f":"IF($B30=Центр!$AE$7,$E30,0)","v":0},{"$f":"IF($B30=Центр!$AE$8,$E30,0)","v":0}]
[null,null,null,null,null,null,null,null,null,null,null,null,null,null,null,null,null,null,null,null,null,null,null,null,null,null,{"$f":"IF($B31=Центр!$AE$5,$E31,0)","v":0},{"$f":"IF($B31=Центр!$AE$6,$E31,0)","v":0},{"$f":"IF($B31=Центр!$AE$7,$E31,0)","v":0},{"$f":"IF($B31=Центр!$AE$8,$E31,0)","v":0}]
[null,null,null,null,null,null,null,null,null,null,null,null,null,null,null,null,null,null,null,null,null,null,null,null,null,null,{"$f":"IF($B32=Центр!$AE$5,$E32,0)","v":0},{"$f":"IF($B32=Центр!$AE$6,$E32,0)","v":0},{"$f":"IF($B32=Центр!$AE$7,$E32,0)","v":0},{"$f":"IF($B32=Центр!$AE$8,$E32,0)","v":0}]
[null,null,null,null,null,null,null,null,null,null,null,null,null,null,null,null,null,null,null,null,null,null,null,null,null,null,{"$f":"IF($B33=Центр!$AE$5,$E33,0)","v":0},{"$f":"IF($B33=Центр!$AE$6,$E33,0)","v":0},{"$f":"IF($B33=Центр!$AE$7,$E33,0)","v":0},{"$f":"IF($B33=Центр!$AE$8,$E33,0)","v":0}]
[null,null,null,null,null,null,null,null,null,null,null,null,null,null,null,null,null,null,null,null,null,null,null,null,null,null,{"$f":"IF($B34=Центр!$AE$5,$E34,0)","v":0},{"$f":"IF($B34=Центр!$AE$6,$E34,0)","v":0},{"$f":"IF($B34=Центр!$AE$7,$E34,0)","v":0},{"$f":"IF($B34=Центр!$AE$8,$E34,0)","v":0}]
[null,null,null,null,null,null,null,null,null,null,null,null,null,null,null,null,null,null,null,null,null,null,null,null,null,null,{"$f":"IF($B35=Центр!$AE$5,$E35,0)","v":0},{"$f":"IF($B35=Центр!$AE$6,$E35,0)","v":0},{"$f":"IF($B35=Центр!$AE$7,$E35,0)","v":0},{"$f":"IF($B35=Центр!$AE$8,$E35,0)","v":0}]
[null,null,null,null,null,null,null,null,null,null,null,null,null,null,null,null,null,null,null,null,null,null,null,null,null,null,{"$f":"IF($B36=Центр!$AE$5,$E36,0)","v":0},{"$f":"IF($B36=Центр!$AE$6,$E36,0)","v":0},{"$f":"IF($B36=Центр!$AE$7,$E36,0)","v":0},{"$f":"IF($B36=Центр!$AE$8,$E36,0)","v":0}]
[null,null,null,null,null,null,null,null,null,null,null,null,null,null,null,null,null,null,null,null,null,null,null,null,null,null,{"$f":"IF($B37=Центр!$AE$5,$E37,0)","v":0},{"$f":"IF($B37=Центр!$AE$6,$E37,0)","v":0},{"$f":"IF($B37=Центр!$AE$7,$E37,0)","v":0},{"$f":"IF($B37=Центр!$AE$8,$E37,0)","v":0}]
[null,null,null,null,null,null,null,null,null,null,null,null,null,null,null,null,null,null,null,null,null,null,null,null,null,null,{"$f":"IF($B38=Центр!$AE$5,$E38,0)","v":0},{"$f":"IF($B38=Центр!$AE$6,$E38,0)","v":0},{"$f":"IF($B38=Центр!$AE$7,$E38,0)","v":0},{"$f":"IF($B38=Центр!$AE$8,$E38,0)","v":0}]
[null,null,null,null,null,null,null,null,null,null,null,null,null,null,null,null,null,null,null,null,null,null,null,null,null,null,{"$f":"IF($B39=Центр!$AE$5,$E39,0)","v":0},{"$f":"IF($B39=Центр!$AE$6,$E39,0)","v":0},{"$f":"IF($B39=Центр!$AE$7,$E39,0)","v":0},{"$f":"IF($B39=Центр!$AE$8,$E39,0)","v":0}]
[null,null,null,null,null,null,null,null,null,null,null,null,null,null,null,null,null,null,null,null,null,null,null,null,null,null,{"$f":"IF($B40=Центр!$AE$5,$E40,0)","v":0},{"$f":"IF($B40=Центр!$AE$6,$E40,0)","v":0},{"$f":"IF($B40=Центр!$AE$7,$E40,0)","v":0},{"$f":"IF($B40=Центр!$AE$8,$E40,0)","v":0}]
[null,null,null,null,null,null,null,null,null,null,null,null,null,null,null,null,null,null,null,null,null,null,null,null,null,null,{"$f":"IF($B41=Центр!$AE$5,$E41,0)","v":0},{"$f":"IF($B41=Центр!$AE$6,$E41,0)","v":0},{"$f":"IF($B41=Центр!$AE$7,$E41,0)","v":0},{"$f":"IF($B41=Центр!$AE$8,$E41,0)","v":0}]
[null,null,null,null,null,null,null,null,null,null,null,null,null,null,null,null,null,null,null,null,null,null,null,null,null,null,{"$f":"IF($B42=Центр!$AE$5,$E42,0)","v":0},{"$f":"IF($B42=Центр!$AE$6,$E42,0)","v":0},{"$f":"IF($B42=Центр!$AE$7,$E42,0)","v":0},{"$f":"IF($B42=Центр!$AE$8,$E42,0)","v":0}]
[null,null,null,null,null,null,null,null,null,null,null,null,null,null,null,null,null,null,null,null,null,null,null,null,null,null,{"$f":"IF($B43=Центр!$AE$5,$E43,0)","v":0},{"$f":"IF($B43=Центр!$AE$6,$E43,0)","v":0},{"$f":"IF($B43=Центр!$AE$7,$E43,0)","v":0},{"$f":"IF($B43=Центр!$AE$8,$E43,0)","v":0}]
[null,null,null,null,null,null,null,null,null,null,null,null,null,null,null,null,null,null,null,null,null,null,null,null,null,null,{"$f":"IF($B44=Центр!$AE$5,$E44,0)","v":0},{"$f":"IF($B44=Центр!$AE$6,$E44,0)","v":0},{"$f":"IF($B44=Центр!$AE$7,$E44,0)","v":0},{"$f":"IF($B44=Центр!$AE$8,$E44,0)","v":0}]
[null,null,null,null,null,null,null,null,null,null,null,null,null,null,null,null,null,null,null,null,null,null,null,null,null,null,{"$f":"IF($B45=Центр!$AE$5,$E45,0)","v":0},{"$f":"IF($B45=Центр!$AE$6,$E45,0)","v":0},{"$f":"IF($B45=Центр!$AE$7,$E45,0)","v":0},{"$f":"IF($B45=Центр!$AE$8,$E45,0)","v":0}]
[null,null,null,null,null,null,null,null,null,null,null,null,null,null,null,null,null,null,null,null,null,null,null,null,null,null,{"$f":"IF($B46=Центр!$AE$5,$E46,0)","v":0},{"$f":"IF($B46=Центр!$AE$6,$E46,0)","v":0},{"$f":"IF($B46=Центр!$AE$7,$E46,0)","v":0},{"$f":"IF($B46=Центр!$AE$8,$E46,0)","v":0}]
[null,null,null,null,null,null,null,null,null,null,null,null,null,null,null,null,null,null,null,null,null,null,null,null,null,null,{"$f":"IF($B47=Центр!$AE$5,$E47,0)","v":0},{"$f":"IF($B47=Центр!$AE$6,$E47,0)","v":0},{"$f":"IF($B47=Центр!$AE$7,$E47,0)","v":0},{"$f":"IF($B47=Центр!$AE$8,$E47,0)","v":0}]
[null,null,null,null,null,null,null,null,null,null,null,null,null,null,null,null,null,null,null,null,null,null,null,null,null,null,{"$f":"IF($B48=Центр!$AE$5,$E48,0)","v":0},{"$f":"IF($B48=Центр!$AE$6,$E48,0)","v":0},{"$f":"IF($B48=Центр!$AE$7,$E48,0)","v":0},{"$f":"IF($B48=Центр!$AE$8,$E48,0)","v":0}]
[null,null,null,null,null,null,null,null,null,null,null,null,null,null,null,null,null,null,null,null,null,null,null,null,null,null,{"$f":"IF($B49=Центр!$AE$5,$E49,0)","v":0},{"$f":"IF($B49=Центр!$AE$6,$E49,0)","v":0},{"$f":"IF($B49=Центр!$AE$7,$E49,0)","v":0},{"$f":"IF($B49=Центр!$AE$8,$E49,0)","v":0}]
[null,null,null,null,null,null,null,null,null,null,null,null,null,null,null,null,null,null,null,null,null,null,null,null,null,null,{"$f":"IF($B50=Центр!$AE$5,$E50,0)","v":0},{"$f":"IF($B50=Центр!$AE$6,$E50,0)","v":0},{"$f":"IF($B50=Центр!$AE$7,$E50,0)","v":0},{"$f":"IF($B50=Центр!$AE$8,$E50,0)","v":0}]
[null,null,null,null,null,null,null,null,null,null,null,null,null,null,null,null,null,null,null,null,null,null,null,null,null,null,{"$f":"IF($B51=Центр!$AE$5,$E51,0)","v":0},{"$f":"IF($B51=Центр!$AE$6,$E51,0)","v":0},{"$f":"IF($B51=Центр!$AE$7,$E51,0)","v":0},{"$f":"IF($B51=Центр!$AE$8,$E51,0)","v":0}]
[null,null,null,null,null,null,null,null,null,null,null,null,null,null,null,null,null,null,null,null,null,null,null,null,null,null,{"$f":"IF($B52=Центр!$AE$5,$E52,0)","v":0},{"$f":"IF($B52=Центр!$AE$6,$E52,0)","v":0},{"$f":"IF($B52=Центр!$AE$7,$E52,0)","v":0},{"$f":"IF($B52=Центр!$AE$8,$E52,0)","v":0}]
[null,null,null,null,null,null,null,null,null,null,null,null,null,null,null,null,null,null,null,null,null,null,null,null,null,null,{"$f":"IF($B53=Центр!$AE$5,$E53,0)","v":0},{"$f":"IF($B53=Центр!$AE$6,$E53,0)","v":0},{"$f":"IF($B53=Центр!$AE$7,$E53,0)","v":0},{"$f":"IF($B53=Центр!$AE$8,$E53,0)","v":0}]
[null,null,null,null,null,null,null,null,null,null,null,null,null,null,null,null,null,null,null,null,null,null,null,null,null,null,{"$f":"IF($B54=Центр!$AE$5,$E54,0)","v":0},{"$f":"IF($B54=Центр!$AE$6,$E54,0)","v":0},{"$f":"IF($B54=Центр!$AE$7,$E54,0)","v":0},{"$f":"IF($B54=Центр!$AE$8,$E54,0)","v":0}]
[null,null,null,null,null,null,null,null,null,null,null,null,null,null,null,null,null,null,null,null,null,null,null,null,null,null,{"$f":"IF($B55=Центр!$AE$5,$E55,0)","v":0},{"$f":"IF($B55=Центр!$AE$6,$E55,0)","v":0},{"$f":"IF($B55=Центр!$AE$7,$E55,0)","v":0},{"$f":"IF($B55=Центр!$AE$8,$E55,0)","v":0}]
[null,null,null,null,null,null,null,null,null,null,null,null,null,null,null,null,null,null,null,null,null,null,null,null,null,null,{"$f":"IF($B56=Центр!$AE$5,$E56,0)","v":0},{"$f":"IF($B56=Центр!$AE$6,$E56,0)","v":0},{"$f":"IF($B56=Центр!$AE$7,$E56,0)","v":0},{"$f":"IF($B56=Центр!$AE$8,$E56,0)","v":0}]
[null,null,null,null,null,null,null,null,null,null,null,null,null,null,null,null,null,null,null,null,null,null,null,null,null,null,{"$f":"IF($B57=Центр!$AE$5,$E57,0)","v":0},{"$f":"IF($B57=Центр!$AE$6,$E57,0)","v":0},{"$f":"IF($B57=Центр!$AE$7,$E57,0)","v":0},{"$f":"IF($B57=Центр!$AE$8,$E57,0)","v":0}]
[null,null,null,null,null,null,null,null,null,null,null,null,null,null,null,null,null,null,null,null,null,null,null,null,null,null,{"$f":"IF($B58=Центр!$AE$5,$E58,0)","v":0},{"$f":"IF($B58=Центр!$AE$6,$E58,0)","v":0},{"$f":"IF($B58=Центр!$AE$7,$E58,0)","v":0},{"$f":"IF($B58=Центр!$AE$8,$E58,0)","v":0}]
[null,null,null,null,null,null,null,null,null,null,null,null,null,null,null,null,null,null,null,null,null,null,null,null,null,null,{"$f":"IF($B59=Центр!$AE$5,$E59,0)","v":0},{"$f":"IF($B59=Центр!$AE$6,$E59,0)","v":0},{"$f":"IF($B59=Центр!$AE$7,$E59,0)","v":0},{"$f":"IF($B59=Центр!$AE$8,$E59,0)","v":0}]
[null,null,null,null,null,null,null,null,null,null,null,null,null,null,null,null,null,null,null,null,null,null,null,null,null,null,{"$f":"IF($B60=Центр!$AE$5,$E60,0)","v":0},{"$f":"IF($B60=Центр!$AE$6,$E60,0)","v":0},{"$f":"IF($B60=Центр!$AE$7,$E60,0)","v":0},{"$f":"IF($B60=Центр!$AE$8,$E60,0)","v":0}]
[null,null,null,null,null,null,null,null,null,null,null,null,null,null,null,null,null,null,null,null,null,null,null,null,null,null,{"$f":"IF($B61=Центр!$AE$5,$E61,0)","v":0},{"$f":"IF($B61=Центр!$AE$6,$E61,0)","v":0},{"$f":"IF($B61=Центр!$AE$7,$E61,0)","v":0},{"$f":"IF($B61=Центр!$AE$8,$E61,0)","v":0}]
[null,null,null,null,null,null,null,null,null,null,null,null,null,null,null,null,null,null,null,null,null,null,null,null,null,null,{"$f":"IF($B62=Центр!$AE$5,$E62,0)","v":0},{"$f":"IF($B62=Центр!$AE$6,$E62,0)","v":0},{"$f":"IF($B62=Центр!$AE$7,$E62,0)","v":0},{"$f":"IF($B62=Центр!$AE$8,$E62,0)","v":0}]
[null,null,null,null,null,null,null,null,null,null,null,null,null,null,null,null,null,null,null,null,null,null,null,null,null,null,{"$f":"IF($B63=Центр!$AE$5,$E63,0)","v":0},{"$f":"IF($B63=Центр!$AE$6,$E63,0)","v":0},{"$f":"IF($B63=Центр!$AE$7,$E63,0)","v":0},{"$f":"IF($B63=Центр!$AE$8,$E63,0)","v":0}]
[null,null,null,null,null,null,null,null,null,null,null,null,null,null,null,null,null,null,null,null,null,null,null,null,null,null,{"$f":"IF($B64=Центр!$AE$5,$E64,0)","v":0},{"$f":"IF($B64=Центр!$AE$6,$E64,0)","v":0},{"$f":"IF($B64=Центр!$AE$7,$E64,0)","v":0},{"$f":"IF($B64=Центр!$AE$8,$E64,0)","v":0}]
[null,null,null,null,null,null,null,null,null,null,null,null,null,null,null,null,null,null,null,null,null,null,null,null,null,null,{"$f":"IF($B65=Центр!$AE$5,$E65,0)","v":0},{"$f":"IF($B65=Центр!$AE$6,$E65,0)","v":0},{"$f":"IF($B65=Центр!$AE$7,$E65,0)","v":0},{"$f":"IF($B65=Центр!$AE$8,$E65,0)","v":0}]
[null,null,null,null,null,null,null,null,null,null,null,null,null,null,null,null,null,null,null,null,null,null,null,null,null,null,{"$f":"IF($B66=Центр!$AE$5,$E66,0)","v":0},{"$f":"IF($B66=Центр!$AE$6,$E66,0)","v":0},{"$f":"IF($B66=Центр!$AE$7,$E66,0)","v":0},{"$f":"IF($B66=Центр!$AE$8,$E66,0)","v":0}]
[null,null,null,null,null,null,null,null,null,null,null,null,null,null,null,null,null,null,null,null,null,null,null,null,null,null,{"$f":"IF($B67=Центр!$AE$5,$E67,0)","v":0},{"$f":"IF($B67=Центр!$AE$6,$E67,0)","v":0},{"$f":"IF($B67=Центр!$AE$7,$E67,0)","v":0},{"$f":"IF($B67=Центр!$AE$8,$E67,0)","v":0}]
[null,null,null,null,null,null,null,null,null,null,null,null,null,null,null,null,null,null,null,null,null,null,null,null,null,null,{"$f":"IF($B68=Центр!$AE$5,$E68,0)","v":0},{"$f":"IF($B68=Центр!$AE$6,$E68,0)","v":0},{"$f":"IF($B68=Центр!$AE$7,$E68,0)","v":0},{"$f":"IF($B68=Центр!$AE$8,$E68,0)","v":0}]
[null,null,null,null,null,null,null,null,null,null,null,null,null,null,null,null,null,null,null,null,null,null,null,null,null,null,{"$f":"IF($B69=Центр!$AE$5,$E69,0)","v":0},{"$f":"IF($B69=Центр!$AE$6,$E69,0)","v":0},{"$f":"IF($B69=Центр!$AE$7,$E69,0)","v":0},{"$f":"IF($B69=Центр!$AE$8,$E69,0)","v":0}]
[null,null,null,null,null,null,null,null,null,null,null,null,null,null,null,null,null,null,null,null,null,null,null,null,null,null,{"$f":"IF($B70=Центр!$AE$5,$E70,0)","v":0},{"$f":"IF($B70=Центр!$AE$6,$E70,0)","v":0},{"$f":"IF($B70=Центр!$AE$7,$E70,0)","v":0},{"$f":"IF($B70=Центр!$AE$8,$E70,0)","v":0}]
[null,null,null,null,null,null,null,null,null,null,null,null,null,null,null,null,null,null,null,null,null,null,null,null,null,null,{"$f":"IF($B71=Центр!$AE$5,$E71,0)","v":0},{"$f":"IF($B71=Центр!$AE$6,$E71,0)","v":0},{"$f":"IF($B71=Центр!$AE$7,$E71,0)","v":0},{"$f":"IF($B71=Центр!$AE$8,$E71,0)","v":0}]
[null,null,null,null,null,null,null,null,null,null,null,null,null,null,null,null,null,null,null,null,null,null,null,null,null,null,{"$f":"IF($B72=Центр!$AE$5,$E72,0)","v":0},{"$f":"IF($B72=Центр!$AE$6,$E72,0)","v":0},{"$f":"IF($B72=Центр!$AE$7,$E72,0)","v":0},{"$f":"IF($B72=Центр!$AE$8,$E72,0)","v":0}]
[null,null,null,null,null,null,null,null,null,null,null,null,null,null,null,null,null,null,null,null,null,null,null,null,null,null,{"$f":"IF($B73=Центр!$AE$5,$E73,0)","v":0},{"$f":"IF($B73=Центр!$AE$6,$E73,0)","v":0},{"$f":"IF($B73=Центр!$AE$7,$E73,0)","v":0},{"$f":"IF($B73=Центр!$AE$8,$E73,0)","v":0}]
[null,null,null,null,null,null,null,null,null,null,null,null,null,null,null,null,null,null,null,null,null,null,null,null,null,null,{"$f":"IF($B74=Центр!$AE$5,$E74,0)","v":0},{"$f":"IF($B74=Центр!$AE$6,$E74,0)","v":0},{"$f":"IF($B74=Центр!$AE$7,$E74,0)","v":0},{"$f":"IF($B74=Центр!$AE$8,$E74,0)","v":0}]
[null,null,null,null,null,null,null,null,null,null,null,null,null,null,null,null,null,null,null,null,null,null,null,null,null,null,{"$f":"IF($B75=Центр!$AE$5,$E75,0)","v":0},{"$f":"IF($B75=Центр!$AE$6,$E75,0)","v":0},{"$f":"IF($B75=Центр!$AE$7,$E75,0)","v":0},{"$f":"IF($B75=Центр!$AE$8,$E75,0)","v":0}]
[null,null,null,null,null,null,null,null,null,null,null,null,null,null,null,null,null,null,null,null,null,null,null,null,null,null,{"$f":"IF($B76=Центр!$AE$5,$E76,0)","v":0},{"$f":"IF($B76=Центр!$AE$6,$E76,0)","v":0},{"$f":"IF($B76=Центр!$AE$7,$E76,0)","v":0},{"$f":"IF($B76=Центр!$AE$8,$E76,0)","v":0}]
[null,null,null,null,null,null,null,null,null,null,null,null,null,null,null,null,null,null,null,null,null,null,null,null,null,null,{"$f":"IF($B77=Центр!$AE$5,$E77,0)","v":0},{"$f":"IF($B77=Центр!$AE$6,$E77,0)","v":0},{"$f":"IF($B77=Центр!$AE$7,$E77,0)","v":0},{"$f":"IF($B77=Центр!$AE$8,$E77,0)","v":0}]
[null,null,null,null,null,null,null,null,null,null,null,null,null,null,null,null,null,null,null,null,null,null,null,null,null,null,{"$f":"IF($B78=Центр!$AE$5,$E78,0)","v":0},{"$f":"IF($B78=Центр!$AE$6,$E78,0)","v":0},{"$f":"IF($B78=Центр!$AE$7,$E78,0)","v":0},{"$f":"IF($B78=Центр!$AE$8,$E78,0)","v":0}]
[null,null,null,null,null,null,null,null,null,null,null,null,null,null,null,null,null,null,null,null,null,null,null,null,null,null,{"$f":"IF($B79=Центр!$AE$5,$E79,0)","v":0},{"$f":"IF($B79=Центр!$AE$6,$E79,0)","v":0},{"$f":"IF($B79=Центр!$AE$7,$E79,0)","v":0},{"$f":"IF($B79=Центр!$AE$8,$E79,0)","v":0}]
[null,null,null,null,null,null,null,null,null,null,null,null,null,null,null,null,null,null,null,null,null,null,null,null,null,null,{"$f":"IF($B80=Центр!$AE$5,$E80,0)","v":0},{"$f":"IF($B80=Центр!$AE$6,$E80,0)","v":0},{"$f":"IF($B80=Центр!$AE$7,$E80,0)","v":0},{"$f":"IF($B80=Центр!$AE$8,$E80,0)","v":0}]
[null,null,null,null,null,null,null,null,null,null,null,null,null,null,null,null,null,null,null,null,null,null,null,null,null,null,{"$f":"IF($B81=Центр!$AE$5,$E81,0)","v":0},{"$f":"IF($B81=Центр!$AE$6,$E81,0)","v":0},{"$f":"IF($B81=Центр!$AE$7,$E81,0)","v":0},{"$f":"IF($B81=Центр!$AE$8,$E81,0)","v":0}]
[null,null,null,null,null,null,null,null,null,null,null,null,null,null,null,null,null,null,null,null,null,null,null,null,null,null,{"$f":"IF($B82=Центр!$AE$5,$E82,0)","v":0},{"$f":"IF($B82=Центр!$AE$6,$E82,0)","v":0},{"$f":"IF($B82=Центр!$AE$7,$E82,0)","v":0},{"$f":"IF($B82=Центр!$AE$8,$E82,0)","v":0}]
[null,null,null,null,null,null,null,null,null,null,null,null,null,null,null,null,null,null,null,null,null,null,null,null,null,null,{"$f":"IF($B83=Центр!$AE$5,$E83,0)","v":0},{"$f":"IF($B83=Центр!$AE$6,$E83,0)","v":0},{"$f":"IF($B83=Центр!$AE$7,$E83,0)","v":0},{"$f":"IF($B83=Центр!$AE$8,$E83,0)","v":0}]
[null,null,null,null,null,null,null,null,null,null,null,null,null,null,null,null,null,null,null,null,null,null,null,null,null,null,{"$f":"IF($B84=Центр!$AE$5,$E84,0)","v":0},{"$f":"IF($B84=Центр!$AE$6,$E84,0)","v":0},{"$f":"IF($B84=Центр!$AE$7,$E84,0)","v":0},{"$f":"IF($B84=Центр!$AE$8,$E84,0)","v":0}]
[null,null,null,null,null,null,null,null,null,null,null,null,null,null,null,null,null,null,null,null,null,null,null,null,null,null,{"$f":"IF($B85=Центр!$AE$5,$E85,0)","v":0},{"$f":"IF($B85=Центр!$AE$6,$E85,0)","v":0},{"$f":"IF($B85=Центр!$AE$7,$E85,0)","v":0},{"$f":"IF($B85=Центр!$AE$8,$E85,0)","v":0}]
[null,null,null,null,null,null,null,null,null,null,null,null,null,null,null,null,null,null,null,null,null,null,null,null,null,null,{"$f":"IF($B86=Центр!$AE$5,$E86,0)","v":0},{"$f":"IF($B86=Центр!$AE$6,$E86,0)","v":0},{"$f":"IF($B86=Центр!$AE$7,$E86,0)","v":0},{"$f":"IF($B86=Центр!$AE$8,$E86,0)","v":0}]
[null,null,null,null,null,null,null,null,null,null,null,null,null,null,null,null,null,null,null,null,null,null,null,null,null,null,{"$f":"IF($B87=Центр!$AE$5,$E87,0)","v":0},{"$f":"IF($B87=Центр!$AE$6,$E87,0)","v":0},{"$f":"IF($B87=Центр!$AE$7,$E87,0)","v":0},{"$f":"IF($B87=Центр!$AE$8,$E87,0)","v":0}]
[null,null,null,null,null,null,null,null,null,null,null,null,null,null,null,null,null,null,null,null,null,null,null,null,null,null,{"$f":"IF($B88=Центр!$AE$5,$E88,0)","v":0},{"$f":"IF($B88=Центр!$AE$6,$E88,0)","v":0},{"$f":"IF($B88=Центр!$AE$7,$E88,0)","v":0},{"$f":"IF($B88=Центр!$AE$8,$E88,0)","v":0}]
[null,null,null,null,null,null,null,null,null,null,null,null,null,null,null,null,null,null,null,null,null,null,null,null,null,null,{"$f":"IF($B89=Центр!$AE$5,$E89,0)","v":0},{"$f":"IF($B89=Центр!$AE$6,$E89,0)","v":0},{"$f":"IF($B89=Центр!$AE$7,$E89,0)","v":0},{"$f":"IF($B89=Центр!$AE$8,$E89,0)","v":0}]
[null,null,null,null,null,null,null,null,null,null,null,null,null,null,null,null,null,null,null,null,null,null,null,null,null,null,{"$f":"IF($B90=Центр!$AE$5,$E90,0)","v":0},{"$f":"IF($B90=Центр!$AE$6,$E90,0)","v":0},{"$f":"IF($B90=Центр!$AE$7,$E90,0)","v":0},{"$f":"IF($B90=Центр!$AE$8,$E90,0)","v":0}]
[null,null,null,null,null,null,null,null,null,null,null,null,null,null,null,null,null,null,null,null,null,null,null,null,null,null,{"$f":"IF($B91=Центр!$AE$5,$E91,0)","v":0},{"$f":"IF($B91=Центр!$AE$6,$E91,0)","v":0},{"$f":"IF($B91=Центр!$AE$7,$E91,0)","v":0},{"$f":"IF($B91=Центр!$AE$8,$E91,0)","v":0}]
[null,null,null,null,null,null,null,null,null,null,null,null,null,null,null,null,null,null,null,null,null,null,null,null,null,null,{"$f":"IF($B92=Центр!$AE$5,$E92,0)","v":0},{"$f":"IF($B92=Центр!$AE$6,$E92,0)","v":0},{"$f":"IF($B92=Центр!$AE$7,$E92,0)","v":0},{"$f":"IF($B92=Центр!$AE$8,$E92,0)","v":0}]
[null,null,null,null,null,null,null,null,null,null,null,null,null,null,null,null,null,null,null,null,null,null,null,null,null,null,{"$f":"IF($B93=Центр!$AE$5,$E93,0)","v":0},{"$f":"IF($B93=Центр!$AE$6,$E93,0)","v":0},{"$f":"IF($B93=Центр!$AE$7,$E93,0)","v":0},{"$f":"IF($B93=Центр!$AE$8,$E93,0)","v":0}]
[null,null,null,null,null,null,null,null,null,null,null,null,null,null,null,null,null,null,null,null,null,null,null,null,null,null,{"$f":"IF($B94=Центр!$AE$5,$E94,0)","v":0},{"$f":"IF($B94=Центр!$AE$6,$E94,0)","v":0},{"$f":"IF($B94=Центр!$AE$7,$E94,0)","v":0},{"$f":"IF($B94=Центр!$AE$8,$E94,0)","v":0}]
[null,null,null,null,null,null,null,null,null,null,null,null,null,null,null,null,null,null,null,null,null,null,null,null,null,null,{"$f":"IF($B95=Центр!$AE$5,$E95,0)","v":0},{"$f":"IF($B95=Центр!$AE$6,$E95,0)","v":0},{"$f":"IF($B95=Центр!$AE$7,$E95,0)","v":0},{"$f":"IF($B95=Центр!$AE$8,$E95,0)","v":0}]
[null,null,null,null,null,null,null,null,null,null,null,null,null,null,null,null,null,null,null,null,null,null,null,null,null,null,{"$f":"IF($B96=Центр!$AE$5,$E96,0)","v":0},{"$f":"IF($B96=Центр!$AE$6,$E96,0)","v":0},{"$f":"IF($B96=Центр!$AE$7,$E96,0)","v":0},{"$f":"IF($B96=Центр!$AE$8,$E96,0)","v":0}]
[null,null,null,null,null,null,null,null,null,null,null,null,null,null,null,null,null,null,null,null,null,null,null,null,null,null,{"$f":"IF($B97=Центр!$AE$5,$E97,0)","v":0},{"$f":"IF($B97=Центр!$AE$6,$E97,0)","v":0},{"$f":"IF($B97=Центр!$AE$7,$E97,0)","v":0},{"$f":"IF($B97=Центр!$AE$8,$E97,0)","v":0}]
[null,null,null,null,null,null,null,null,null,null,null,null,null,null,null,null,null,null,null,null,null,null,null,null,null,null,{"$f":"IF($B98=Центр!$AE$5,$E98,0)","v":0},{"$f":"IF($B98=Центр!$AE$6,$E98,0)","v":0},{"$f":"IF($B98=Центр!$AE$7,$E98,0)","v":0},{"$f":"IF($B98=Центр!$AE$8,$E98,0)","v":0}]
[null,null,null,null,null,null,null,null,null,null,null,null,null,null,null,null,null,null,null,null,null,null,null,null,null,null,{"$f":"IF($B99=Центр!$AE$5,$E99,0)","v":0},{"$f":"IF($B99=Центр!$AE$6,$E99,0)","v":0},{"$f":"IF($B99=Центр!$AE$7,$E99,0)","v":0},{"$f":"IF($B99=Центр!$AE$8,$E99,0)","v":0}]
[null,null,null,null,null,null,null,null,null,null,null,null,null,null,null,null,null,null,null,null,null,null,null,null,null,null,{"$f":"IF($B100=Центр!$AE$5,$E100,0)","v":0},{"$f":"IF($B100=Центр!$AE$6,$E100,0)","v":0},{"$f":"IF($B100=Центр!$AE$7,$E100,0)","v":0},{"$f":"IF($B100=Центр!$AE$8,$E100,0)","v":0}]
[null,null,null,null,null,null,null,null,null,null,null,null,null,null,null,null,null,null,null,null,null,null,null,null,null,null,{"$f":"IF($B101=Центр!$AE$5,$E101,0)","v":0},{"$f":"IF($B101=Центр!$AE$6,$E101,0)","v":0},{"$f":"IF($B101=Центр!$AE$7,$E101,0)","v":0},{"$f":"IF($B101=Центр!$AE$8,$E101,0)","v":0}]
[null,null,null,null,null,null,null,null,null,null,null,null,null,null,null,null,null,null,null,null,null,null,null,null,null,null,{"$f":"IF($B102=Центр!$AE$5,$E102,0)","v":0},{"$f":"IF($B102=Центр!$AE$6,$E102,0)","v":0},{"$f":"IF($B102=Центр!$AE$7,$E102,0)","v":0},{"$f":"IF($B102=Центр!$AE$8,$E102,0)","v":0}]
[null,null,null,null,null,null,null,null,null,null,null,null,null,null,null,null,null,null,null,null,null,null,null,null,null,null,{"$f":"IF($B103=Центр!$AE$5,$E103,0)","v":0},{"$f":"IF($B103=Центр!$AE$6,$E103,0)","v":0},{"$f":"IF($B103=Центр!$AE$7,$E103,0)","v":0},{"$f":"IF($B103=Центр!$AE$8,$E103,0)","v":0}]
[null,null,null,null,null,null,null,null,null,null,null,null,null,null,null,null,null,null,null,null,null,null,null,null,null,null,{"$f":"IF($B104=Центр!$AE$5,$E104,0)","v":0},{"$f":"IF($B104=Центр!$AE$6,$E104,0)","v":0},{"$f":"IF($B104=Центр!$AE$7,$E104,0)","v":0},{"$f":"IF($B104=Центр!$AE$8,$E104,0)","v":0}]
[null,null,null,null,null,null,null,null,null,null,null,null,null,null,null,null,null,null,null,null,null,null,null,null,null,null,{"$f":"IF($B105=Центр!$AE$5,$E105,0)","v":0},{"$f":"IF($B105=Центр!$AE$6,$E105,0)","v":0},{"$f":"IF($B105=Центр!$AE$7,$E105,0)","v":0},{"$f":"IF($B105=Центр!$AE$8,$E105,0)","v":0}]
[null,null,null,null,null,null,null,null,null,null,null,null,null,null,null,null,null,null,null,null,null,null,null,null,null,null,{"$f":"IF($B106=Центр!$AE$5,$E106,0)","v":0},{"$f":"IF($B106=Центр!$AE$6,$E106,0)","v":0},{"$f":"IF($B106=Центр!$AE$7,$E106,0)","v":0},{"$f":"IF($B106=Центр!$AE$8,$E106,0)","v":0}]
[null,null,null,null,null,null,null,null,null,null,null,null,null,null,null,null,null,null,null,null,null,null,null,null,null,null,{"$f":"IF($B107=Центр!$AE$5,$E107,0)","v":0},{"$f":"IF($B107=Центр!$AE$6,$E107,0)","v":0},{"$f":"IF($B107=Центр!$AE$7,$E107,0)","v":0},{"$f":"IF($B107=Центр!$AE$8,$E107,0)","v":0}]
[null,null,null,null,null,null,null,null,null,null,null,null,null,null,null,null,null,null,null,null,null,null,null,null,null,null,{"$f":"IF($B108=Центр!$AE$5,$E108,0)","v":0},{"$f":"IF($B108=Центр!$AE$6,$E108,0)","v":0},{"$f":"IF($B108=Центр!$AE$7,$E108,0)","v":0},{"$f":"IF($B108=Центр!$AE$8,$E108,0)","v":0}]
[null,null,null,null,null,null,null,null,null,null,null,null,null,null,null,null,null,null,null,null,null,null,null,null,null,null,{"$f":"IF($B109=Центр!$AE$5,$E109,0)","v":0},{"$f":"IF($B109=Центр!$AE$6,$E109,0)","v":0},{"$f":"IF($B109=Центр!$AE$7,$E109,0)","v":0},{"$f":"IF($B109=Центр!$AE$8,$E109,0)","v":0}]
[null,null,null,null,null,null,null,null,null,null,null,null,null,null,null,null,null,null,null,null,null,null,null,null,null,null,{"$f":"IF($B110=Центр!$AE$5,$E110,0)","v":0},{"$f":"IF($B110=Центр!$AE$6,$E110,0)","v":0},{"$f":"IF($B110=Центр!$AE$7,$E110,0)","v":0},{"$f":"IF($B110=Центр!$AE$8,$E110,0)","v":0}]
[null,null,null,null,null,null,null,null,null,null,null,null,null,null,null,null,null,null,null,null,null,null,null,null,null,null,{"$f":"IF($B111=Центр!$AE$5,$E111,0)","v":0},{"$f":"IF($B111=Центр!$AE$6,$E111,0)","v":0},{"$f":"IF($B111=Центр!$AE$7,$E111,0)","v":0},{"$f":"IF($B111=Центр!$AE$8,$E111,0)","v":0}]
[null,null,null,null,null,null,null,null,null,null,null,null,null,null,null,null,null,null,null,null,null,null,null,null,null,null,{"$f":"IF($B112=Центр!$AE$5,$E112,0)","v":0},{"$f":"IF($B112=Центр!$AE$6,$E112,0)","v":0},{"$f":"IF($B112=Центр!$AE$7,$E112,0)","v":0},{"$f":"IF($B112=Центр!$AE$8,$E112,0)","v":0}]
[null,null,null,null,null,null,null,null,null,null,null,null,null,null,null,null,null,null,null,null,null,null,null,null,null,null,{"$f":"IF($B113=Центр!$AE$5,$E113,0)","v":0},{"$f":"IF($B113=Центр!$AE$6,$E113,0)","v":0},{"$f":"IF($B113=Центр!$AE$7,$E113,0)","v":0},{"$f":"IF($B113=Центр!$AE$8,$E113,0)","v":0}]
[null,null,null,null,null,null,null,null,null,null,null,null,null,null,null,null,null,null,null,null,null,null,null,null,null,null,{"$f":"IF($B114=Центр!$AE$5,$E114,0)","v":0},{"$f":"IF($B114=Центр!$AE$6,$E114,0)","v":0},{"$f":"IF($B114=Центр!$AE$7,$E114,0)","v":0},{"$f":"IF($B114=Центр!$AE$8,$E114,0)","v":0}]
[null,null,null,null,null,null,null,null,null,null,null,null,null,null,null,null,null,null,null,null,null,null,null,null,null,null,{"$f":"IF($B115=Центр!$AE$5,$E115,0)","v":0},{"$f":"IF($B115=Центр!$AE$6,$E115,0)","v":0},{"$f":"IF($B115=Центр!$AE$7,$E115,0)","v":0},{"$f":"IF($B115=Центр!$AE$8,$E115,0)","v":0}]
[null,null,null,null,null,null,null,null,null,null,null,null,null,null,null,null,null,null,null,null,null,null,null,null,null,null,{"$f":"IF($B116=Центр!$AE$5,$E116,0)","v":0},{"$f":"IF($B116=Центр!$AE$6,$E116,0)","v":0},{"$f":"IF($B116=Центр!$AE$7,$E116,0)","v":0},{"$f":"IF($B116=Центр!$AE$8,$E116,0)","v":0}]
[null,null,null,null,null,null,null,null,null,null,null,null,null,null,null,null,null,null,null,null,null,null,null,null,null,null,{"$f":"IF($B117=Центр!$AE$5,$E117,0)","v":0},{"$f":"IF($B117=Центр!$AE$6,$E117,0)","v":0},{"$f":"IF($B117=Центр!$AE$7,$E117,0)","v":0},{"$f":"IF($B117=Центр!$AE$8,$E117,0)","v":0}]
[null,null,null,null,null,null,null,null,null,null,null,null,null,null,null,null,null,null,null,null,null,null,null,null,null,null,{"$f":"IF($B118=Центр!$AE$5,$E118,0)","v":0},{"$f":"IF($B118=Центр!$AE$6,$E118,0)","v":0},{"$f":"IF($B118=Центр!$AE$7,$E118,0)","v":0},{"$f":"IF($B118=Центр!$AE$8,$E118,0)","v":0}]
[null,null,null,null,null,null,null,null,null,null,null,null,null,null,null,null,null,null,null,null,null,null,null,null,null,null,{"$f":"IF($B119=Центр!$AE$5,$E119,0)","v":0},{"$f":"IF($B119=Центр!$AE$6,$E119,0)","v":0},{"$f":"IF($B119=Центр!$AE$7,$E119,0)","v":0},{"$f":"IF($B119=Центр!$AE$8,$E119,0)","v":0}]
[null,null,null,null,null,null,null,null,null,null,null,null,null,null,null,null,null,null,null,null,null,null,null,null,null,null,{"$f":"IF($B120=Центр!$AE$5,$E120,0)","v":0},{"$f":"IF($B120=Центр!$AE$6,$E120,0)","v":0},{"$f":"IF($B120=Центр!$AE$7,$E120,0)","v":0},{"$f":"IF($B120=Центр!$AE$8,$E120,0)","v":0}]
[null,null,null,null,null,null,null,null,null,null,null,null,null,null,null,null,null,null,null,null,null,null,null,null,null,null,{"$f":"IF($B121=Центр!$AE$5,$E121,0)","v":0},{"$f":"IF($B121=Центр!$AE$6,$E121,0)","v":0},{"$f":"IF($B121=Центр!$AE$7,$E121,0)","v":0},{"$f":"IF($B121=Центр!$AE$8,$E121,0)","v":0}]
[null,null,null,null,null,null,null,null,null,null,null,null,null,null,null,null,null,null,null,null,null,null,null,null,null,null,{"$f":"IF($B122=Центр!$AE$5,$E122,0)","v":0},{"$f":"IF($B122=Центр!$AE$6,$E122,0)","v":0},{"$f":"IF($B122=Центр!$AE$7,$E122,0)","v":0},{"$f":"IF($B122=Центр!$AE$8,$E122,0)","v":0}]
[null,null,null,null,null,null,null,null,null,null,null,null,null,null,null,null,null,null,null,null,null,null,null,null,null,null,{"$f":"IF($B123=Центр!$AE$5,$E123,0)","v":0},{"$f":"IF($B123=Центр!$AE$6,$E123,0)","v":0},{"$f":"IF($B123=Центр!$AE$7,$E123,0)","v":0},{"$f":"IF($B123=Центр!$AE$8,$E123,0)","v":0}]
[null,null,null,null,null,null,null,null,null,null,null,null,null,null,null,null,null,null,null,null,null,null,null,null,null,null,{"$f":"IF($B124=Центр!$AE$5,$E124,0)","v":0},{"$f":"IF($B124=Центр!$AE$6,$E124,0)","v":0},{"$f":"IF($B124=Центр!$AE$7,$E124,0)","v":0},{"$f":"IF($B124=Центр!$AE$8,$E124,0)","v":0}]
[null,null,null,null,null,null,null,null,null,null,null,null,null,null,null,null,null,null,null,null,null,null,null,null,null,null,{"$f":"IF($B125=Центр!$AE$5,$E125,0)","v":0},{"$f":"IF($B125=Центр!$AE$6,$E125,0)","v":0},{"$f":"IF($B125=Центр!$AE$7,$E125,0)","v":0},{"$f":"IF($B125=Центр!$AE$8,$E125,0)","v":0}]
[null,null,null,null,null,null,null,null,null,null,null,null,null,null,null,null,null,null,null,null,null,null,null,null,null,null,{"$f":"IF($B126=Центр!$AE$5,$E126,0)","v":0},{"$f":"IF($B126=Центр!$AE$6,$E126,0)","v":0},{"$f":"IF($B126=Центр!$AE$7,$E126,0)","v":0},{"$f":"IF($B126=Центр!$AE$8,$E126,0)","v":0}]
[null,null,null,null,null,null,null,null,null,null,null,null,null,null,null,null,null,null,null,null,null,null,null,null,null,null,{"$f":"IF($B127=Центр!$AE$5,$E127,0)","v":0},{"$f":"IF($B127=Центр!$AE$6,$E127,0)","v":0},{"$f":"IF($B127=Центр!$AE$7,$E127,0)","v":0},{"$f":"IF($B127=Центр!$AE$8,$E127,0)","v":0}]
[null,null,null,null,null,null,null,null,null,null,null,null,null,null,null,null,null,null,null,null,null,null,null,null,null,null,{"$f":"IF($B128=Центр!$AE$5,$E128,0)","v":0},{"$f":"IF($B128=Центр!$AE$6,$E128,0)","v":0},{"$f":"IF($B128=Центр!$AE$7,$E128,0)","v":0},{"$f":"IF($B128=Центр!$AE$8,$E128,0)","v":0}]
[null,null,null,null,null,null,null,null,null,null,null,null,null,null,null,null,null,null,null,null,null,null,null,null,null,null,{"$f":"IF($B129=Центр!$AE$5,$E129,0)","v":0},{"$f":"IF($B129=Центр!$AE$6,$E129,0)","v":0},{"$f":"IF($B129=Центр!$AE$7,$E129,0)","v":0},{"$f":"IF($B129=Центр!$AE$8,$E129,0)","v":0}]
[null,null,null,null,null,null,null,null,null,null,null,null,null,null,null,null,null,null,null,null,null,null,null,null,null,null,{"$f":"IF($B130=Центр!$AE$5,$E130,0)","v":0},{"$f":"IF($B130=Центр!$AE$6,$E130,0)","v":0},{"$f":"IF($B130=Центр!$AE$7,$E130,0)","v":0},{"$f":"IF($B130=Центр!$AE$8,$E130,0)","v":0}]
[null,null,null,null,null,null,null,null,null,null,null,null,null,null,null,null,null,null,null,null,null,null,null,null,null,null,{"$f":"IF($B131=Центр!$AE$5,$E131,0)","v":0},{"$f":"IF($B131=Центр!$AE$6,$E131,0)","v":0},{"$f":"IF($B131=Центр!$AE$7,$E131,0)","v":0},{"$f":"IF($B131=Центр!$AE$8,$E131,0)","v":0}]
[null,null,null,null,null,null,null,null,null,null,null,null,null,null,null,null,null,null,null,null,null,null,null,null,null,null,{"$f":"IF($B132=Центр!$AE$5,$E132,0)","v":0},{"$f":"IF($B132=Центр!$AE$6,$E132,0)","v":0},{"$f":"IF($B132=Центр!$AE$7,$E132,0)","v":0},{"$f":"IF($B132=Центр!$AE$8,$E132,0)","v":0}]
[null,null,null,null,null,null,null,null,null,null,null,null,null,null,null,null,null,null,null,null,null,null,null,null,null,null,{"$f":"IF($B133=Центр!$AE$5,$E133,0)","v":0},{"$f":"IF($B133=Центр!$AE$6,$E133,0)","v":0},{"$f":"IF($B133=Центр!$AE$7,$E133,0)","v":0},{"$f":"IF($B133=Центр!$AE$8,$E133,0)","v":0}]
[null,null,null,null,null,null,null,null,null,null,null,null,null,null,null,null,null,null,null,null,null,null,null,null,null,null,{"$f":"IF($B134=Центр!$AE$5,$E134,0)","v":0},{"$f":"IF($B134=Центр!$AE$6,$E134,0)","v":0},{"$f":"IF($B134=Центр!$AE$7,$E134,0)","v":0},{"$f":"IF($B134=Центр!$AE$8,$E134,0)","v":0}]
[null,null,null,null,null,null,null,null,null,null,null,null,null,null,null,null,null,null,null,null,null,null,null,null,null,null,{"$f":"IF($B135=Центр!$AE$5,$E135,0)","v":0},{"$f":"IF($B135=Центр!$AE$6,$E135,0)","v":0},{"$f":"IF($B135=Центр!$AE$7,$E135,0)","v":0},{"$f":"IF($B135=Центр!$AE$8,$E135,0)","v":0}]
[null,null,null,null,null,null,null,null,null,null,null,null,null,null,null,null,null,null,null,null,null,null,null,null,null,null,{"$f":"IF($B136=Центр!$AE$5,$E136,0)","v":0},{"$f":"IF($B136=Центр!$AE$6,$E136,0)","v":0},{"$f":"IF($B136=Центр!$AE$7,$E136,0)","v":0},{"$f":"IF($B136=Центр!$AE$8,$E136,0)","v":0}]
[null,null,null,null,null,null,null,null,null,null,null,null,null,null,null,null,null,null,null,null,null,null,null,null,null,null,{"$f":"IF($B137=Центр!$AE$5,$E137,0)","v":0},{"$f":"IF($B137=Центр!$AE$6,$E137,0)","v":0},{"$f":"IF($B137=Центр!$AE$7,$E137,0)","v":0},{"$f":"IF($B137=Центр!$AE$8,$E137,0)","v":0}]
[null,null,null,null,null,null,null,null,null,null,null,null,null,null,null,null,null,null,null,null,null,null,null,null,null,null,{"$f":"IF($B138=Центр!$AE$5,$E138,0)","v":0},{"$f":"IF($B138=Центр!$AE$6,$E138,0)","v":0},{"$f":"IF($B138=Центр!$AE$7,$E138,0)","v":0},{"$f":"IF($B138=Центр!$AE$8,$E138,0)","v":0}]
[null,null,null,null,null,null,null,null,null,null,null,null,null,null,null,null,null,null,null,null,null,null,null,null,null,null,{"$f":"IF($B139=Центр!$AE$5,$E139,0)","v":0},{"$f":"IF($B139=Центр!$AE$6,$E139,0)","v":0},{"$f":"IF($B139=Центр!$AE$7,$E139,0)","v":0},{"$f":"IF($B139=Центр!$AE$8,$E139,0)","v":0}]
[null,null,null,null,null,null,null,null,null,null,null,null,null,null,null,null,null,null,null,null,null,null,null,null,null,null,{"$f":"IF($B140=Центр!$AE$5,$E140,0)","v":0},{"$f":"IF($B140=Центр!$AE$6,$E140,0)","v":0},{"$f":"IF($B140=Центр!$AE$7,$E140,0)","v":0},{"$f":"IF($B140=Центр!$AE$8,$E140,0)","v":0}]
[null,null,null,null,null,null,null,null,null,null,null,null,null,null,null,null,null,null,null,null,null,null,null,null,null,null,{"$f":"IF($B141=Центр!$AE$5,$E141,0)","v":0},{"$f":"IF($B141=Центр!$AE$6,$E141,0)","v":0},{"$f":"IF($B141=Центр!$AE$7,$E141,0)","v":0},{"$f":"IF($B141=Центр!$AE$8,$E141,0)","v":0}]
[null,null,null,null,null,null,null,null,null,null,null,null,null,null,null,null,null,null,null,null,null,null,null,null,null,null,{"$f":"IF($B142=Центр!$AE$5,$E142,0)","v":0},{"$f":"IF($B142=Центр!$AE$6,$E142,0)","v":0},{"$f":"IF($B142=Центр!$AE$7,$E142,0)","v":0},{"$f":"IF($B142=Центр!$AE$8,$E142,0)","v":0}]
[null,null,null,null,null,null,null,null,null,null,null,null,null,null,null,null,null,null,null,null,null,null,null,null,null,null,{"$f":"IF($B143=Центр!$AE$5,$E143,0)","v":0},{"$f":"IF($B143=Центр!$AE$6,$E143,0)","v":0},{"$f":"IF($B143=Центр!$AE$7,$E143,0)","v":0},{"$f":"IF($B143=Центр!$AE$8,$E143,0)","v":0}]
[null,null,null,null,null,null,null,null,null,null,null,null,null,null,null,null,null,null,null,null,null,null,null,null,null,null,{"$f":"IF($B144=Центр!$AE$5,$E144,0)","v":0},{"$f":"IF($B144=Центр!$AE$6,$E144,0)","v":0},{"$f":"IF($B144=Центр!$AE$7,$E144,0)","v":0},{"$f":"IF($B144=Центр!$AE$8,$E144,0)","v":0}]
[null,null,null,null,null,null,null,null,null,null,null,null,null,null,null,null,null,null,null,null,null,null,null,null,null,null,{"$f":"IF($B145=Центр!$AE$5,$E145,0)","v":0},{"$f":"IF($B145=Центр!$AE$6,$E145,0)","v":0},{"$f":"IF($B145=Центр!$AE$7,$E145,0)","v":0},{"$f":"IF($B145=Центр!$AE$8,$E145,0)","v":0}]
[null,null,null,null,null,null,null,null,null,null,null,null,null,null,null,null,null,null,null,null,null,null,null,null,null,null,{"$f":"IF($B146=Центр!$AE$5,$E146,0)","v":0},{"$f":"IF($B146=Центр!$AE$6,$E146,0)","v":0},{"$f":"IF($B146=Центр!$AE$7,$E146,0)","v":0},{"$f":"IF($B146=Центр!$AE$8,$E146,0)","v":0}]
[null,null,null,null,null,null,null,null,null,null,null,null,null,null,null,null,null,null,null,null,null,null,null,null,null,null,{"$f":"IF($B147=Центр!$AE$5,$E147,0)","v":0},{"$f":"IF($B147=Центр!$AE$6,$E147,0)","v":0},{"$f":"IF($B147=Центр!$AE$7,$E147,0)","v":0},{"$f":"IF($B147=Центр!$AE$8,$E147,0)","v":0}]
[null,null,null,null,null,null,null,null,null,null,null,null,null,null,null,null,null,null,null,null,null,null,null,null,null,null,{"$f":"IF($B148=Центр!$AE$5,$E148,0)","v":0},{"$f":"IF($B148=Центр!$AE$6,$E148,0)","v":0},{"$f":"IF($B148=Центр!$AE$7,$E148,0)","v":0},{"$f":"IF($B148=Центр!$AE$8,$E148,0)","v":0}]
[null,null,null,null,null,null,null,null,null,null,null,null,null,null,null,null,null,null,null,null,null,null,null,null,null,null,{"$f":"IF($B149=Центр!$AE$5,$E149,0)","v":0},{"$f":"IF($B149=Центр!$AE$6,$E149,0)","v":0},{"$f":"IF($B149=Центр!$AE$7,$E149,0)","v":0},{"$f":"IF($B149=Центр!$AE$8,$E149,0)","v":0}]
[null,null,null,null,null,null,null,null,null,null,null,null,null,null,null,null,null,null,null,null,null,null,null,null,null,null,{"$f":"IF($B150=Центр!$AE$5,$E150,0)","v":0},{"$f":"IF($B150=Центр!$AE$6,$E150,0)","v":0},{"$f":"IF($B150=Центр!$AE$7,$E150,0)","v":0},{"$f":"IF($B150=Центр!$AE$8,$E150,0)","v":0}]
[null,null,null,null,null,null,null,null,null,null,null,null,null,null,null,null,null,null,null,null,null,null,null,null,null,null,{"$f":"IF($B151=Центр!$AE$5,$E151,0)","v":0},{"$f":"IF($B151=Центр!$AE$6,$E151,0)","v":0},{"$f":"IF($B151=Центр!$AE$7,$E151,0)","v":0},{"$f":"IF($B151=Центр!$AE$8,$E151,0)","v":0}]
[null,null,null,null,null,null,null,null,null,null,null,null,null,null,null,null,null,null,null,null,null,null,null,null,null,null,{"$f":"IF($B152=Центр!$AE$5,$E152,0)","v":0},{"$f":"IF($B152=Центр!$AE$6,$E152,0)","v":0},{"$f":"IF($B152=Центр!$AE$7,$E152,0)","v":0},{"$f":"IF($B152=Центр!$AE$8,$E152,0)","v":0}]
[null,null,null,null,null,null,null,null,null,null,null,null,null,null,null,null,null,null,null,null,null,null,null,null,null,null,{"$f":"IF($B153=Центр!$AE$5,$E153,0)","v":0},{"$f":"IF($B153=Центр!$AE$6,$E153,0)","v":0},{"$f":"IF($B153=Центр!$AE$7,$E153,0)","v":0},{"$f":"IF($B153=Центр!$AE$8,$E153,0)","v":0}]
[null,null,null,null,null,null,null,null,null,null,null,null,null,null,null,null,null,null,null,null,null,null,null,null,null,null,{"$f":"IF($B154=Центр!$AE$5,$E154,0)","v":0},{"$f":"IF($B154=Центр!$AE$6,$E154,0)","v":0},{"$f":"IF($B154=Центр!$AE$7,$E154,0)","v":0},{"$f":"IF($B154=Центр!$AE$8,$E154,0)","v":0}]
[null,null,null,null,null,null,null,null,null,null,null,null,null,null,null,null,null,null,null,null,null,null,null,null,null,null,{"$f":"IF($B155=Центр!$AE$5,$E155,0)","v":0},{"$f":"IF($B155=Центр!$AE$6,$E155,0)","v":0},{"$f":"IF($B155=Центр!$AE$7,$E155,0)","v":0},{"$f":"IF($B155=Центр!$AE$8,$E155,0)","v":0}]
[null,null,null,null,null,null,null,null,null,null,null,null,null,null,null,null,null,null,null,null,null,null,null,null,null,null,{"$f":"IF($B156=Центр!$AE$5,$E156,0)","v":0},{"$f":"IF($B156=Центр!$AE$6,$E156,0)","v":0},{"$f":"IF($B156=Центр!$AE$7,$E156,0)","v":0},{"$f":"IF($B156=Центр!$AE$8,$E156,0)","v":0}]
[null,null,null,null,null,null,null,null,null,null,null,null,null,null,null,null,null,null,null,null,null,null,null,null,null,null,{"$f":"IF($B157=Центр!$AE$5,$E157,0)","v":0},{"$f":"IF($B157=Центр!$AE$6,$E157,0)","v":0},{"$f":"IF($B157=Центр!$AE$7,$E157,0)","v":0},{"$f":"IF($B157=Центр!$AE$8,$E157,0)","v":0}]
[null,null,null,null,null,null,null,null,null,null,null,null,null,null,null,null,null,null,null,null,null,null,null,null,null,null,{"$f":"IF($B158=Центр!$AE$5,$E158,0)","v":0},{"$f":"IF($B158=Центр!$AE$6,$E158,0)","v":0},{"$f":"IF($B158=Центр!$AE$7,$E158,0)","v":0},{"$f":"IF($B158=Центр!$AE$8,$E158,0)","v":0}]
[null,null,null,null,null,null,null,null,null,null,null,null,null,null,null,null,null,null,null,null,null,null,null,null,null,null,{"$f":"IF($B159=Центр!$AE$5,$E159,0)","v":0},{"$f":"IF($B159=Центр!$AE$6,$E159,0)","v":0},{"$f":"IF($B159=Центр!$AE$7,$E159,0)","v":0},{"$f":"IF($B159=Центр!$AE$8,$E159,0)","v":0}]
[null,null,null,null,null,null,null,null,null,null,null,null,null,null,null,null,null,null,null,null,null,null,null,null,null,null,{"$f":"IF($B160=Центр!$AE$5,$E160,0)","v":0},{"$f":"IF($B160=Центр!$AE$6,$E160,0)","v":0},{"$f":"IF($B160=Центр!$AE$7,$E160,0)","v":0},{"$f":"IF($B160=Центр!$AE$8,$E160,0)","v":0}]
[null,null,null,null,null,null,null,null,null,null,null,null,null,null,null,null,null,null,null,null,null,null,null,null,null,null,{"$f":"IF($B161=Центр!$AE$5,$E161,0)","v":0},{"$f":"IF($B161=Центр!$AE$6,$E161,0)","v":0},{"$f":"IF($B161=Центр!$AE$7,$E161,0)","v":0},{"$f":"IF($B161=Центр!$AE$8,$E161,0)","v":0}]
[null,null,null,null,null,null,null,null,null,null,null,null,null,null,null,null,null,null,null,null,null,null,null,null,null,null,{"$f":"IF($B162=Центр!$AE$5,$E162,0)","v":0},{"$f":"IF($B162=Центр!$AE$6,$E162,0)","v":0},{"$f":"IF($B162=Центр!$AE$7,$E162,0)","v":0},{"$f":"IF($B162=Центр!$AE$8,$E162,0)","v":0}]
[null,null,null,null,null,null,null,null,null,null,null,null,null,null,null,null,null,null,null,null,null,null,null,null,null,null,{"$f":"IF($B163=Центр!$AE$5,$E163,0)","v":0},{"$f":"IF($B163=Центр!$AE$6,$E163,0)","v":0},{"$f":"IF($B163=Центр!$AE$7,$E163,0)","v":0},{"$f":"IF($B163=Центр!$AE$8,$E163,0)","v":0}]
[null,null,null,null,null,null,null,null,null,null,null,null,null,null,null,null,null,null,null,null,null,null,null,null,null,null,{"$f":"IF($B164=Центр!$AE$5,$E164,0)","v":0},{"$f":"IF($B164=Центр!$AE$6,$E164,0)","v":0},{"$f":"IF($B164=Центр!$AE$7,$E164,0)","v":0},{"$f":"IF($B164=Центр!$AE$8,$E164,0)","v":0}]
[null,null,null,null,null,null,null,null,null,null,null,null,null,null,null,null,null,null,null,null,null,null,null,null,null,null,{"$f":"IF($B165=Центр!$AE$5,$E165,0)","v":0},{"$f":"IF($B165=Центр!$AE$6,$E165,0)","v":0},{"$f":"IF($B165=Центр!$AE$7,$E165,0)","v":0},{"$f":"IF($B165=Центр!$AE$8,$E165,0)","v":0}]
[null,null,null,null,null,null,null,null,null,null,null,null,null,null,null,null,null,null,null,null,null,null,null,null,null,null,{"$f":"IF($B166=Центр!$AE$5,$E166,0)","v":0},{"$f":"IF($B166=Центр!$AE$6,$E166,0)","v":0},{"$f":"IF($B166=Центр!$AE$7,$E166,0)","v":0},{"$f":"IF($B166=Центр!$AE$8,$E166,0)","v":0}]
[null,null,null,null,null,null,null,null,null,null,null,null,null,null,null,null,null,null,null,null,null,null,null,null,null,null,{"$f":"IF($B167=Центр!$AE$5,$E167,0)","v":0},{"$f":"IF($B167=Центр!$AE$6,$E167,0)","v":0},{"$f":"IF($B167=Центр!$AE$7,$E167,0)","v":0},{"$f":"IF($B167=Центр!$AE$8,$E167,0)","v":0}]
[null,null,null,null,null,null,null,null,null,null,null,null,null,null,null,null,null,null,null,null,null,null,null,null,null,null,{"$f":"IF($B168=Центр!$AE$5,$E168,0)","v":0},{"$f":"IF($B168=Центр!$AE$6,$E168,0)","v":0},{"$f":"IF($B168=Центр!$AE$7,$E168,0)","v":0},{"$f":"IF($B168=Центр!$AE$8,$E168,0)","v":0}]
[null,null,null,null,null,null,null,null,null,null,null,null,null,null,null,null,null,null,null,null,null,null,null,null,null,null,{"$f":"IF($B169=Центр!$AE$5,$E169,0)","v":0},{"$f":"IF($B169=Центр!$AE$6,$E169,0)","v":0},{"$f":"IF($B169=Центр!$AE$7,$E169,0)","v":0},{"$f":"IF($B169=Центр!$AE$8,$E169,0)","v":0}]
[null,null,null,null,null,null,null,null,null,null,null,null,null,null,null,null,null,null,null,null,null,null,null,null,null,null,{"$f":"IF($B170=Центр!$AE$5,$E170,0)","v":0},{"$f":"IF($B170=Центр!$AE$6,$E170,0)","v":0},{"$f":"IF($B170=Центр!$AE$7,$E170,0)","v":0},{"$f":"IF($B170=Центр!$AE$8,$E170,0)","v":0}]
[null,null,null,null,null,null,null,null,null,null,null,null,null,null,null,null,null,null,null,null,null,null,null,null,null,null,{"$f":"IF($B171=Центр!$AE$5,$E171,0)","v":0},{"$f":"IF($B171=Центр!$AE$6,$E171,0)","v":0},{"$f":"IF($B171=Центр!$AE$7,$E171,0)","v":0},{"$f":"IF($B171=Центр!$AE$8,$E171,0)","v":0}]
[null,null,null,null,null,null,null,null,null,null,null,null,null,null,null,null,null,null,null,null,null,null,null,null,null,null,{"$f":"IF($B172=Центр!$AE$5,$E172,0)","v":0},{"$f":"IF($B172=Центр!$AE$6,$E172,0)","v":0},{"$f":"IF($B172=Центр!$AE$7,$E172,0)","v":0},{"$f":"IF($B172=Центр!$AE$8,$E172,0)","v":0}]
[null,null,null,null,null,null,null,null,null,null,null,null,null,null,null,null,null,null,null,null,null,null,null,null,null,null,{"$f":"IF($B173=Центр!$AE$5,$E173,0)","v":0},{"$f":"IF($B173=Центр!$AE$6,$E173,0)","v":0},{"$f":"IF($B173=Центр!$AE$7,$E173,0)","v":0},{"$f":"IF($B173=Центр!$AE$8,$E173,0)","v":0}]
[null,null,null,null,null,null,null,null,null,null,null,null,null,null,null,null,null,null,null,null,null,null,null,null,null,null,{"$f":"IF($B174=Центр!$AE$5,$E174,0)","v":0},{"$f":"IF($B174=Центр!$AE$6,$E174,0)","v":0},{"$f":"IF($B174=Центр!$AE$7,$E174,0)","v":0},{"$f":"IF($B174=Центр!$AE$8,$E174,0)","v":0}]
[null,null,null,null,null,null,null,null,null,null,null,null,null,null,null,null,null,null,null,null,null,null,null,null,null,null,{"$f":"IF($B175=Центр!$AE$5,$E175,0)","v":0},{"$f":"IF($B175=Центр!$AE$6,$E175,0)","v":0},{"$f":"IF($B175=Центр!$AE$7,$E175,0)","v":0},{"$f":"IF($B175=Центр!$AE$8,$E175,0)","v":0}]
[null,null,null,null,null,null,null,null,null,null,null,null,null,null,null,null,null,null,null,null,null,null,null,null,null,null,{"$f":"IF($B176=Центр!$AE$5,$E176,0)","v":0},{"$f":"IF($B176=Центр!$AE$6,$E176,0)","v":0},{"$f":"IF($B176=Центр!$AE$7,$E176,0)","v":0},{"$f":"IF($B176=Центр!$AE$8,$E176,0)","v":0}]
[null,null,null,null,null,null,null,null,null,null,null,null,null,null,null,null,null,null,null,null,null,null,null,null,null,null,{"$f":"IF($B177=Центр!$AE$5,$E177,0)","v":0},{"$f":"IF($B177=Центр!$AE$6,$E177,0)","v":0},{"$f":"IF($B177=Центр!$AE$7,$E177,0)","v":0},{"$f":"IF($B177=Центр!$AE$8,$E177,0)","v":0}]
[null,null,null,null,null,null,null,null,null,null,null,null,null,null,null,null,null,null,null,null,null,null,null,null,null,null,{"$f":"IF($B178=Центр!$AE$5,$E178,0)","v":0},{"$f":"IF($B178=Центр!$AE$6,$E178,0)","v":0},{"$f":"IF($B178=Центр!$AE$7,$E178,0)","v":0},{"$f":"IF($B178=Центр!$AE$8,$E178,0)","v":0}]
[null,null,null,null,null,null,null,null,null,null,null,null,null,null,null,null,null,null,null,null,null,null,null,null,null,null,{"$f":"IF($B179=Центр!$AE$5,$E179,0)","v":0},{"$f":"IF($B179=Центр!$AE$6,$E179,0)","v":0},{"$f":"IF($B179=Центр!$AE$7,$E179,0)","v":0},{"$f":"IF($B179=Центр!$AE$8,$E179,0)","v":0}]
[null,null,null,null,null,null,null,null,null,null,null,null,null,null,null,null,null,null,null,null,null,null,null,null,null,null,{"$f":"IF($B180=Центр!$AE$5,$E180,0)","v":0},{"$f":"IF($B180=Центр!$AE$6,$E180,0)","v":0},{"$f":"IF($B180=Центр!$AE$7,$E180,0)","v":0},{"$f":"IF($B180=Центр!$AE$8,$E180,0)","v":0}]
[null,null,null,null,null,null,null,null,null,null,null,null,null,null,null,null,null,null,null,null,null,null,null,null,null,null,{"$f":"IF($B181=Центр!$AE$5,$E181,0)","v":0},{"$f":"IF($B181=Центр!$AE$6,$E181,0)","v":0},{"$f":"IF($B181=Центр!$AE$7,$E181,0)","v":0},{"$f":"IF($B181=Центр!$AE$8,$E181,0)","v":0}]
[null,null,null,null,null,null,null,null,null,null,null,null,null,null,null,null,null,null,null,null,null,null,null,null,null,null,{"$f":"IF($B182=Центр!$AE$5,$E182,0)","v":0},{"$f":"IF($B182=Центр!$AE$6,$E182,0)","v":0},{"$f":"IF($B182=Центр!$AE$7,$E182,0)","v":0},{"$f":"IF($B182=Центр!$AE$8,$E182,0)","v":0}]
[null,null,null,null,null,null,null,null,null,null,null,null,null,null,null,null,null,null,null,null,null,null,null,null,null,null,{"$f":"IF($B183=Центр!$AE$5,$E183,0)","v":0},{"$f":"IF($B183=Центр!$AE$6,$E183,0)","v":0},{"$f":"IF($B183=Центр!$AE$7,$E183,0)","v":0},{"$f":"IF($B183=Центр!$AE$8,$E183,0)","v":0}]
[null,null,null,null,null,null,null,null,null,null,null,null,null,null,null,null,null,null,null,null,null,null,null,null,null,null,{"$f":"IF($B184=Центр!$AE$5,$E184,0)","v":0},{"$f":"IF($B184=Центр!$AE$6,$E184,0)","v":0},{"$f":"IF($B184=Центр!$AE$7,$E184,0)","v":0},{"$f":"IF($B184=Центр!$AE$8,$E184,0)","v":0}]
[null,null,null,null,null,null,null,null,null,null,null,null,null,null,null,null,null,null,null,null,null,null,null,null,null,null,{"$f":"IF($B185=Центр!$AE$5,$E185,0)","v":0},{"$f":"IF($B185=Центр!$AE$6,$E185,0)","v":0},{"$f":"IF($B185=Центр!$AE$7,$E185,0)","v":0},{"$f":"IF($B185=Центр!$AE$8,$E185,0)","v":0}]
[null,null,null,null,null,null,null,null,null,null,null,null,null,null,null,null,null,null,null,null,null,null,null,null,null,null,{"$f":"IF($B186=Центр!$AE$5,$E186,0)","v":0},{"$f":"IF($B186=Центр!$AE$6,$E186,0)","v":0},{"$f":"IF($B186=Центр!$AE$7,$E186,0)","v":0},{"$f":"IF($B186=Центр!$AE$8,$E186,0)","v":0}]
[null,null,null,null,null,null,null,null,null,null,null,null,null,null,null,null,null,null,null,null,null,null,null,null,null,null,{"$f":"IF($B187=Центр!$AE$5,$E187,0)","v":0},{"$f":"IF($B187=Центр!$AE$6,$E187,0)","v":0},{"$f":"IF($B187=Центр!$AE$7,$E187,0)","v":0},{"$f":"IF($B187=Центр!$AE$8,$E187,0)","v":0}]
[null,null,null,null,null,null,null,null,null,null,null,null,null,null,null,null,null,null,null,null,null,null,null,null,null,null,{"$f":"IF($B188=Центр!$AE$5,$E188,0)","v":0},{"$f":"IF($B188=Центр!$AE$6,$E188,0)","v":0},{"$f":"IF($B188=Центр!$AE$7,$E188,0)","v":0},{"$f":"IF($B188=Центр!$AE$8,$E188,0)","v":0}]
[null,null,null,null,null,null,null,null,null,null,null,null,null,null,null,null,null,null,null,null,null,null,null,null,null,null,{"$f":"IF($B189=Центр!$AE$5,$E189,0)","v":0},{"$f":"IF($B189=Центр!$AE$6,$E189,0)","v":0},{"$f":"IF($B189=Центр!$AE$7,$E189,0)","v":0},{"$f":"IF($B189=Центр!$AE$8,$E189,0)","v":0}]
[null,null,null,null,null,null,null,null,null,null,null,null,null,null,null,null,null,null,null,null,null,null,null,null,null,null,{"$f":"IF($B190=Центр!$AE$5,$E190,0)","v":0},{"$f":"IF($B190=Центр!$AE$6,$E190,0)","v":0},{"$f":"IF($B190=Центр!$AE$7,$E190,0)","v":0},{"$f":"IF($B190=Центр!$AE$8,$E190,0)","v":0}]
[null,null,null,null,null,null,null,null,null,null,null,null,null,null,null,null,null,null,null,null,null,null,null,null,null,null,{"$f":"IF($B191=Центр!$AE$5,$E191,0)","v":0},{"$f":"IF($B191=Центр!$AE$6,$E191,0)","v":0},{"$f":"IF($B191=Центр!$AE$7,$E191,0)","v":0},{"$f":"IF($B191=Центр!$AE$8,$E191,0)","v":0}]
[null,null,null,null,null,null,null,null,null,null,null,null,null,null,null,null,null,null,null,null,null,null,null,null,null,null,{"$f":"IF($B192=Центр!$AE$5,$E192,0)","v":0},{"$f":"IF($B192=Центр!$AE$6,$E192,0)","v":0},{"$f":"IF($B192=Центр!$AE$7,$E192,0)","v":0},{"$f":"IF($B192=Центр!$AE$8,$E192,0)","v":0}]
[null,null,null,null,null,null,null,null,null,null,null,null,null,null,null,null,null,null,null,null,null,null,null,null,null,null,{"$f":"IF($B193=Центр!$AE$5,$E193,0)","v":0},{"$f":"IF($B193=Центр!$AE$6,$E193,0)","v":0},{"$f":"IF($B193=Центр!$AE$7,$E193,0)","v":0},{"$f":"IF($B193=Центр!$AE$8,$E193,0)","v":0}]
[null,null,null,null,null,null,null,null,null,null,null,null,null,null,null,null,null,null,null,null,null,null,null,null,null,null,{"$f":"IF($B194=Центр!$AE$5,$E194,0)","v":0},{"$f":"IF($B194=Центр!$AE$6,$E194,0)","v":0},{"$f":"IF($B194=Центр!$AE$7,$E194,0)","v":0},{"$f":"IF($B194=Центр!$AE$8,$E194,0)","v":0}]
[null,null,null,null,null,null,null,null,null,null,null,null,null,null,null,null,null,null,null,null,null,null,null,null,null,null,{"$f":"IF($B195=Центр!$AE$5,$E195,0)","v":0},{"$f":"IF($B195=Центр!$AE$6,$E195,0)","v":0},{"$f":"IF($B195=Центр!$AE$7,$E195,0)","v":0},{"$f":"IF($B195=Центр!$AE$8,$E195,0)","v":0}]
[null,null,null,null,null,null,null,null,null,null,null,null,null,null,null,null,null,null,null,null,null,null,null,null,null,null,{"$f":"IF($B196=Центр!$AE$5,$E196,0)","v":0},{"$f":"IF($B196=Центр!$AE$6,$E196,0)","v":0},{"$f":"IF($B196=Центр!$AE$7,$E196,0)","v":0},{"$f":"IF($B196=Центр!$AE$8,$E196,0)","v":0}]
[null,null,null,null,null,null,null,null,null,null,null,null,null,null,null,null,null,null,null,null,null,null,null,null,null,null,{"$f":"IF($B197=Центр!$AE$5,$E197,0)","v":0},{"$f":"IF($B197=Центр!$AE$6,$E197,0)","v":0},{"$f":"IF($B197=Центр!$AE$7,$E197,0)","v":0},{"$f":"IF($B197=Центр!$AE$8,$E197,0)","v":0}]
[null,null,null,null,null,null,null,null,null,null,null,null,null,null,null,null,null,null,null,null,null,null,null,null,null,null,{"$f":"IF($B198=Центр!$AE$5,$E198,0)","v":0},{"$f":"IF($B198=Центр!$AE$6,$E198,0)","v":0},{"$f":"IF($B198=Центр!$AE$7,$E198,0)","v":0},{"$f":"IF($B198=Центр!$AE$8,$E198,0)","v":0}]
[null,null,null,null,null,null,null,null,null,null,null,null,null,null,null,null,null,null,null,null,null,null,null,null,null,null,{"$f":"IF($B199=Центр!$AE$5,$E199,0)","v":0},{"$f":"IF($B199=Центр!$AE$6,$E199,0)","v":0},{"$f":"IF($B199=Центр!$AE$7,$E199,0)","v":0},{"$f":"IF($B199=Центр!$AE$8,$E199,0)","v":0}]
[null,null,null,null,null,null,null,null,null,null,null,null,null,null,null,null,null,null,null,null,null,null,null,null,null,null,{"$f":"SUM(AA2:AA199)","v":0},{"$f":"SUM(AB2:AB199)","v":0},{"$f":"SUM(AC2:AC199)","v":0},{"$f":"SUM(AD2:AD199)","v":0}]

{"sheet":"Расплата","index":2,"n_rows":4,"n_cols":4,"rows_kept":4,"cut":false,"hidden":false,"merged":[[0,1,0,2]]}
["Мероприятие :",{"$f":"Центр!B1","v":0}]
["Дата проведения :",{"$f":"Центр!B2","v":"00:00:00"}]
[]
["Банкир","Должничок","Сумма долга","Закрыто"]